[Event "Chessable Masters - Torneo preliminare"]
[White "Tari, Aryan"]
[Black "Piorun, Kacper"]
[WhiteFideId "1510045"]
[BlackFideId "1130420"]
[WhiteElo "2539"]
[BlackElo "2491"]
[Result "1-0"]
[Round "3"]
[TimeControl "600+2"]
[Date "2023.03.13"]
[WhiteClock "0:00:41"]
[BlackClock "0:00:05"]

1. e4 {[%clk 0:10:01]}  e5 {[%clk 0:09:54]} 2. Nf3 {[%clk 0:09:58]}  Nc6 {[%clk 0:09:54]} 3. d4 {[%clk 0:09:57]}  exd4 {[%clk 0:09:48]} 4. Nxd4 {[%clk 0:09:59]}  Bb4+ {[%clk 0:09:39]} 5. c3 {[%clk 0:09:57]}  Be7 {[%clk 0:09:40]} 6. Qg4 {[%clk 0:09:21]}  Bf6 {[%clk 0:08:53]} 7. Nxc6 {[%clk 0:08:57]}  bxc6 {[%clk 0:08:35]} 8. Qg3 {[%clk 0:08:18]}  d6 {[%clk 0:08:32]} 9. Nd2 {[%clk 0:07:33]}  Ne7 {[%clk 0:08:28]} 10. Nf3 {[%clk 0:07:33]}  Ng6 {[%clk 0:08:14]} 11. h4 {[%clk 0:07:20]}  O-O {[%clk 0:07:21]} 12. Bg5 {[%clk 0:05:59]}  Re8 {[%clk 0:06:30]} 13. Bd3 {[%clk 0:05:58]}  Rb8 {[%clk 0:04:52]} 14. O-O-O {[%clk 0:05:53]}  Be6 {[%clk 0:04:06]} 15. Nd4 {[%clk 0:05:36]}  Bd7 {[%clk 0:03:59]} 16. f4 {[%clk 0:05:12]}  h6 {[%clk 0:03:57]} 17. h5 {[%clk 0:05:04]}  Ne5 {[%clk 0:03:07]} 18. Bxh6 {[%clk 0:03:37]}  Ng4 {[%clk 0:03:05]} 19. e5 {[%clk 0:03:33]}  gxh6 {[%clk 0:01:39]} 20. Bf5 {[%clk 0:02:25]}  Kh8 {[%clk 0:01:35]} 21. Qxg4 {[%clk 0:02:20]}  Rg8 {[%clk 0:01:29]} 22. Qh3 {[%clk 0:02:20]}  dxe5 {[%clk 0:01:14]} 23. Nf3 {[%clk 0:01:38]}  Bxf5 {[%clk 0:00:56]} 24. Qxf5 {[%clk 0:01:40]}  Qe7 {[%clk 0:00:56]} 25. Rd7 {[%clk 0:01:33]}  Qe6 {[%clk 0:00:46]} 26. Qxe6 {[%clk 0:01:34]}  fxe6 {[%clk 0:00:47]} 27. fxe5 {[%clk 0:01:35]}  Bg5+ {[%clk 0:00:49]} 28. Kb1 {[%clk 0:01:33]}  Bf4 {[%clk 0:00:49]} 29. Nh4 {[%clk 0:01:29]}  Rg4 {[%clk 0:00:36]} 30. Ng6+ {[%clk 0:01:25]}  Kg8 {[%clk 0:00:37]} 31. Rf1 {[%clk 0:01:23]}  Rxg2 {[%clk 0:00:21]} 32. b3 {[%clk 0:01:02]}  Rxg6 {[%clk 0:00:04]} 33. hxg6 {[%clk 0:01:02]}  Bxe5 {[%clk 0:00:05]} 34. c4 {[%clk 0:00:58]}  a5 {[%clk 0:00:04]} 35. Re1 {[%clk 0:00:55]}  Bg7 {[%clk 0:00:02]} 36. Rxe6 {[%clk 0:00:55]}  a4 {[%clk 0:00:04]} 37. Kc2 {[%clk 0:00:54]}  axb3+ {[%clk 0:00:04]} 38. axb3 {[%clk 0:00:56]}  h5 {[%clk 0:00:05]} 39. Rxc6 {[%clk 0:00:54]}  h4 {[%clk 0:00:06]} 40. Rcxc7 {[%clk 0:00:51]}  Bf6 {[%clk 0:00:06]} 41. Rh7 {[%clk 0:00:49]}  Ra8 {[%clk 0:00:07]} 42. Ra7 {[%clk 0:00:50]}  Re8 {[%clk 0:00:07]} 43. Raf7 {[%clk 0:00:42]}  Re6 {[%clk 0:00:05]} 44. Rxf6 {[%clk 0:00:41]} 1-0


[Site "Internet"]

[Event "Chessable Masters - Torneo preliminare"]
[White "Neiksans, Arturs"]
[Black "Haub, Thorsten Michael"]
[WhiteFideId "11601388"]
[BlackFideId "4610776"]
[WhiteElo "2553"]
[BlackElo "2456"]
[Result "1-0"]
[Round "3"]
[TimeControl "600+2"]
[Date "2023.03.13"]
[WhiteClock "0:00:31"]
[BlackClock "0:02:28"]

1. e4 {[%clk 0:10:01]}  g6 {[%clk 0:09:57]} 2. d4 {[%clk 0:10:02]}  Bg7 {[%clk 0:09:58]} 3. Nc3 {[%clk 0:10:03]}  d6 {[%clk 0:09:58]} 4. Be3 {[%clk 0:10:03]}  a6 {[%clk 0:09:57]} 5. Qd2 {[%clk 0:10:02]}  Nd7 {[%clk 0:09:57]} 6. h4 {[%clk 0:10:03]}  h6 {[%clk 0:09:56]} 7. a4 {[%clk 0:09:52]}  b6 {[%clk 0:09:55]} 8. Bc4 {[%clk 0:09:45]}  e6 {[%clk 0:09:53]} 9. Nge2 {[%clk 0:09:36]}  Ndf6 {[%clk 0:09:49]} 10. f3 {[%clk 0:09:34]}  d5 {[%clk 0:09:46]} 11. exd5 {[%clk 0:09:17]}  Nxd5 {[%clk 0:09:31]} 12. Nxd5 {[%clk 0:09:06]}  exd5 {[%clk 0:09:32]} 13. Bd3 {[%clk 0:09:07]}  Ne7 {[%clk 0:09:26]} 14. Ng3 {[%clk 0:08:42]}  Qd6 {[%clk 0:09:09]} 15. Kf2 {[%clk 0:08:40]}  h5 {[%clk 0:09:03]} 16. c3 {[%clk 0:08:34]}  Be6 {[%clk 0:08:54]} 17. a5 {[%clk 0:08:20]}  b5 {[%clk 0:08:52]} 18. Bf4 {[%clk 0:08:04]}  Qd7 {[%clk 0:08:51]} 19. Rae1 {[%clk 0:08:04]}  O-O {[%clk 0:08:49]} 20. Qc2 {[%clk 0:07:17]}  Rfe8 {[%clk 0:08:28]} 21. b4 {[%clk 0:07:17]}  c6 {[%clk 0:08:20]} 22. Re2 {[%clk 0:07:06]}  Nf5 {[%clk 0:08:10]} 23. Nxf5 {[%clk 0:04:27]}  Bxf5 {[%clk 0:08:09]} 24. Bxf5 {[%clk 0:04:27]}  Qxf5 {[%clk 0:08:09]} 25. Qxf5 {[%clk 0:04:26]}  Rxe2+ {[%clk 0:08:06]} 26. Kxe2 {[%clk 0:04:27]}  gxf5 {[%clk 0:08:06]} 27. Kf2 {[%clk 0:04:21]}  Re8 {[%clk 0:08:05]} 28. Rg1 {[%clk 0:03:45]}  Kh7 {[%clk 0:07:58]} 29. g4 {[%clk 0:03:29]}  fxg4 {[%clk 0:07:51]} 30. fxg4 {[%clk 0:03:30]}  hxg4 {[%clk 0:07:52]} 31. Rxg4 {[%clk 0:03:29]}  Re4 {[%clk 0:07:23]} 32. Kf3 {[%clk 0:03:29]}  Re1 {[%clk 0:07:15]} 33. Rg2 {[%clk 0:03:00]}  Bh6 {[%clk 0:05:28]} 34. Bxh6 {[%clk 0:02:40]}  Kxh6 {[%clk 0:05:28]} 35. Kg4 {[%clk 0:02:25]}  Re3 {[%clk 0:05:13]} 36. Rg3 {[%clk 0:02:15]}  Re4+ {[%clk 0:04:56]} 37. Kf5 {[%clk 0:02:06]}  Re6 {[%clk 0:04:37]} 38. Rg8 {[%clk 0:01:27]}  Re3 {[%clk 0:04:37]} 39. Ra8 {[%clk 0:01:28]}  Rxc3 {[%clk 0:04:38]} 40. Rxa6 {[%clk 0:01:29]}  Rc4 {[%clk 0:04:37]} 41. Ke5 {[%clk 0:01:31]}  Kg7 {[%clk 0:04:34]} 42. h5 {[%clk 0:01:22]}  Rxb4 {[%clk 0:04:17]} 43. Rxc6 {[%clk 0:01:22]}  Ra4 {[%clk 0:04:18]} 44. a6 {[%clk 0:01:13]}  b4 {[%clk 0:04:16]} 45. Kxd5 {[%clk 0:01:01]}  b3 {[%clk 0:04:17]} 46. Rb6 {[%clk 0:01:02]}  b2 {[%clk 0:04:18]} 47. Rxb2 {[%clk 0:00:58]}  Rxa6 {[%clk 0:04:18]} 48. Kc5 {[%clk 0:00:53]}  Kh6 {[%clk 0:04:02]} 49. Rh2 {[%clk 0:00:45]}  f5 {[%clk 0:03:57]} 50. d5 {[%clk 0:00:46]}  Ra1 {[%clk 0:03:53]} 51. d6 {[%clk 0:00:42]}  f4 {[%clk 0:03:47]} 52. d7 {[%clk 0:00:36]}  Rd1 {[%clk 0:03:46]} 53. Kc6 {[%clk 0:00:38]}  f3 {[%clk 0:03:43]} 54. Rf2 {[%clk 0:00:38]}  Rd3 {[%clk 0:03:30]} 55. Rxf3 {[%clk 0:00:37]}  Rxf3 {[%clk 0:03:31]} 56. d8=Q {[%clk 0:00:38]}  Kxh5 {[%clk 0:03:32]} 57. Qh8+ {[%clk 0:00:37]}  Kg4 {[%clk 0:03:32]} 58. Kd5 {[%clk 0:00:38]}  Rf5+ {[%clk 0:03:30]} 59. Ke6 {[%clk 0:00:37]}  Rf4 {[%clk 0:03:27]} 60. Qg7+ {[%clk 0:00:35]}  Kf3 {[%clk 0:03:27]} 61. Ke5 {[%clk 0:00:36]}  Re4+ {[%clk 0:03:28]} 62. Kd5 {[%clk 0:00:37]}  Rf4 {[%clk 0:03:27]} 63. Qg1 {[%clk 0:00:33]}  Rg4 {[%clk 0:03:20]} 64. Qf1+ {[%clk 0:00:33]}  Ke3 {[%clk 0:03:15]} 65. Qe1+ {[%clk 0:00:31]}  Kf3 {[%clk 0:03:15]} 66. Ke5 {[%clk 0:00:31]}  Rg5+ {[%clk 0:02:57]} 67. Kf6 {[%clk 0:00:32]}  Rg4 {[%clk 0:02:55]} 68. Qd1+ {[%clk 0:00:31]}  Kg3 {[%clk 0:02:56]} 69. Kf5 {[%clk 0:00:32]}  Rf4+ {[%clk 0:02:56]} 70. Kg5 {[%clk 0:00:33]}  Rf2 {[%clk 0:02:52]} 71. Qd3+ {[%clk 0:00:32]}  Rf3 {[%clk 0:02:50]} 72. Qd6+ {[%clk 0:00:33]}  Kg2 {[%clk 0:02:36]} 73. Kg4 {[%clk 0:00:34]}  Rf2 {[%clk 0:02:36]} 74. Qd5+ {[%clk 0:00:35]}  Kf1 {[%clk 0:02:36]} 75. Kg3 {[%clk 0:00:33]}  Kg1 {[%clk 0:02:28]} 76. Qd4 {[%clk 0:00:31]} 1-0


[Site "Internet"]

[Event "Chessable Masters - Torneo preliminare"]
[White "Matamoros Franco, Carlos S."]
[Black "Mamedov, Rauf"]
[WhiteFideId "3600017"]
[BlackFideId "13401653"]
[WhiteElo "2407"]
[BlackElo "2632"]
[Result "1-0"]
[Round "3"]
[TimeControl "600+2"]
[Date "2023.03.13"]
[WhiteClock "0:04:54"]
[BlackClock "0:07:12"]

1. c4 {[%clk 0:10:01]}  c5 {[%clk 0:10:00]} 2. g3 {[%clk 0:10:02]}  g6 {[%clk 0:10:01]} 3. Bg2 {[%clk 0:10:03]}  Bg7 {[%clk 0:10:02]} 4. Nc3 {[%clk 0:10:05]}  Nc6 {[%clk 0:10:03]} 5. Nf3 {[%clk 0:10:03]}  d6 {[%clk 0:10:04]} 6. O-O {[%clk 0:09:53]}  e5 {[%clk 0:10:05]} 7. a3 {[%clk 0:09:53]}  Nge7 {[%clk 0:10:03]} 8. Rb1 {[%clk 0:09:54]}  a5 {[%clk 0:10:02]} 9. d3 {[%clk 0:09:50]}  O-O {[%clk 0:10:03]} 10. Bg5 {[%clk 0:09:48]}  h6 {[%clk 0:10:04]} 11. Bxe7 {[%clk 0:09:49]}  Nxe7 {[%clk 0:10:04]} 12. Ne1 {[%clk 0:09:34]}  h5 {[%clk 0:09:54]} 13. b4 {[%clk 0:09:13]}  cxb4 {[%clk 0:09:49]} 14. axb4 {[%clk 0:09:15]}  axb4 {[%clk 0:09:49]} 15. Rxb4 {[%clk 0:09:13]}  h4 {[%clk 0:09:50]} 16. Rb1 {[%clk 0:08:43]}  Rb8 {[%clk 0:09:45]} 17. Nf3 {[%clk 0:08:11]}  h3 {[%clk 0:09:35]} 18. Bh1 {[%clk 0:08:11]}  b6 {[%clk 0:09:35]} 19. Qb3 {[%clk 0:08:03]}  Be6 {[%clk 0:09:30]} 20. Ng5 {[%clk 0:08:00]}  Bd7 {[%clk 0:09:31]} 21. Nge4 {[%clk 0:07:48]}  Nf5 {[%clk 0:09:30]} 22. e3 {[%clk 0:07:42]}  Be6 {[%clk 0:09:32]} 23. Qb4 {[%clk 0:07:26]}  Qe7 {[%clk 0:09:20]} 24. Ra1 {[%clk 0:07:17]}  Bh6 {[%clk 0:09:14]} 25. Rfe1 {[%clk 0:07:13]}  Rfd8 {[%clk 0:08:56]} 26. Ra6 {[%clk 0:07:02]}  Kg7 {[%clk 0:08:31]} 27. Rxb6 {[%clk 0:06:50]}  Qa7 {[%clk 0:08:32]} 28. Rxb8 {[%clk 0:06:42]}  Rxb8 {[%clk 0:08:33]} 29. Nb5 {[%clk 0:06:42]}  Qa2 {[%clk 0:08:12]} 30. Qd2 {[%clk 0:06:32]}  Qb3 {[%clk 0:07:44]} 31. g4 {[%clk 0:06:17]}  Nxe3 {[%clk 0:07:11]} 32. g5 {[%clk 0:05:52]}  Bxg5 {[%clk 0:07:12]} 33. Nxg5 {[%clk 0:05:53]}  Nf5 {[%clk 0:07:14]} 34. Nxe6+ {[%clk 0:05:44]}  fxe6 {[%clk 0:07:15]} 35. Be4 {[%clk 0:05:38]}  Rf8 {[%clk 0:07:03]} 36. Bxf5 {[%clk 0:05:30]}  Rxf5 {[%clk 0:07:04]} 37. Nxd6 {[%clk 0:05:30]}  Rf4 {[%clk 0:07:06]} 38. Ne4 {[%clk 0:05:21]}  Rg4+ {[%clk 0:07:03]} 39. Ng3 {[%clk 0:05:01]}  Qb7 {[%clk 0:07:04]} 40. f3 {[%clk 0:05:03]}  Qxf3 {[%clk 0:07:05]} 41. Qe2 {[%clk 0:04:59]}  Qf4 {[%clk 0:07:06]} 42. Qxe5+ {[%clk 0:04:56]}  Qxe5 {[%clk 0:07:07]} 43. Rxe5 {[%clk 0:04:58]}  Rd4 {[%clk 0:07:09]} 44. Re3 {[%clk 0:04:59]}  Kf6 {[%clk 0:07:09]} 45. Ne4+ {[%clk 0:05:00]}  Ke5 {[%clk 0:07:11]} 46. Rxh3 {[%clk 0:05:01]}  g5 {[%clk 0:07:12]} 47. Nxg5 {[%clk 0:04:54]} 1-0


[Site "Internet"]

[Event "Chessable Masters - Torneo preliminare"]
[White "Maghsoodloo, Parham"]
[Black "Mekhitarian, Krikor Sevag"]
[WhiteFideId "12539929"]
[BlackFideId "2107660"]
[WhiteElo "2660"]
[BlackElo "2594"]
[Result "1-0"]
[Round "3"]
[TimeControl "600+2"]
[Date "2023.03.13"]
[WhiteClock "0:07:11"]
[BlackClock "0:03:19"]

1. d4 {[%clk 0:10:00]}  Nf6 {[%clk 0:09:48]} 2. Nf3 {[%clk 0:10:00]}  e6 {[%clk 0:09:45]} 3. Bf4 {[%clk 0:09:58]}  d5 {[%clk 0:09:39]} 4. e3 {[%clk 0:09:59]}  c5 {[%clk 0:09:39]} 5. Nbd2 {[%clk 0:09:58]}  Nc6 {[%clk 0:09:34]} 6. c3 {[%clk 0:09:59]}  Nh5 {[%clk 0:09:00]} 7. Be5 {[%clk 0:09:45]}  f6 {[%clk 0:08:51]} 8. Bg3 {[%clk 0:09:46]}  g6 {[%clk 0:08:46]} 9. Bh4 {[%clk 0:09:36]}  cxd4 {[%clk 0:08:30]} 10. Nxd4 {[%clk 0:09:32]}  Be7 {[%clk 0:08:20]} 11. Be2 {[%clk 0:09:11]}  Ng7 {[%clk 0:08:19]} 12. O-O {[%clk 0:09:08]}  O-O {[%clk 0:08:20]} 13. N2b3 {[%clk 0:08:57]}  e5 {[%clk 0:08:07]} 14. Nxc6 {[%clk 0:08:49]}  bxc6 {[%clk 0:08:09]} 15. f3 {[%clk 0:08:50]}  c5 {[%clk 0:07:39]} 16. e4 {[%clk 0:08:44]}  d4 {[%clk 0:07:18]} 17. cxd4 {[%clk 0:08:33]}  cxd4 {[%clk 0:07:16]} 18. f4 {[%clk 0:08:34]}  Bb7 {[%clk 0:06:01]} 19. Bd3 {[%clk 0:08:08]}  exf4 {[%clk 0:04:42]} 20. Bf2 {[%clk 0:08:06]}  Ne6 {[%clk 0:04:36]} 21. Bc4 {[%clk 0:08:06]}  Qc8 {[%clk 0:04:06]} 22. Rc1 {[%clk 0:07:43]}  Kh8 {[%clk 0:03:55]} 23. Na5 {[%clk 0:07:21]}  Bxe4 {[%clk 0:03:28]} 24. Bd3 {[%clk 0:07:15]}  Qd8 {[%clk 0:03:18]} 25. Bxe4 {[%clk 0:07:09]}  Qxa5 {[%clk 0:03:19]} 26. Bxa8 {[%clk 0:07:10]}  Rxa8 {[%clk 0:03:19]} 27. Re1 {[%clk 0:07:11]} 1-0


[Site "Internet"]

[Event "Chessable Masters - Torneo preliminare"]
[White "Iniyan, P"]
[Black "Sankalp, Gupta"]
[WhiteFideId "25002767"]
[BlackFideId "5097010"]
[WhiteElo "2441"]
[BlackElo "2427"]
[Result "0-1"]
[Round "3"]
[TimeControl "600+2"]
[Date "2023.03.13"]
[WhiteClock "0:00:54"]
[BlackClock "0:01:37"]

1. d4 {[%clk 0:10:01]}  Nf6 {[%clk 0:10:00]} 2. c4 {[%clk 0:10:01]}  e6 {[%clk 0:10:01]} 3. Nf3 {[%clk 0:10:02]}  d5 {[%clk 0:10:02]} 4. Nc3 {[%clk 0:10:03]}  a6 {[%clk 0:10:04]} 5. cxd5 {[%clk 0:10:04]}  exd5 {[%clk 0:10:06]} 6. Bf4 {[%clk 0:10:05]}  Be6 {[%clk 0:10:07]} 7. e3 {[%clk 0:10:06]}  Bd6 {[%clk 0:10:06]} 8. Bd3 {[%clk 0:10:06]}  c6 {[%clk 0:10:03]} 9. O-O {[%clk 0:10:03]}  Qc7 {[%clk 0:10:03]} 10. Bxd6 {[%clk 0:09:56]}  Qxd6 {[%clk 0:10:05]} 11. Ne5 {[%clk 0:09:03]}  c5 {[%clk 0:10:03]} 12. Bc2 {[%clk 0:08:44]}  Nc6 {[%clk 0:09:54]} 13. Nxc6 {[%clk 0:08:42]}  bxc6 {[%clk 0:09:53]} 14. dxc5 {[%clk 0:07:56]}  Qxc5 {[%clk 0:09:55]} 15. h3 {[%clk 0:07:58]}  O-O {[%clk 0:09:51]} 16. Na4 {[%clk 0:07:57]}  Qe7 {[%clk 0:09:17]} 17. Rc1 {[%clk 0:07:55]}  Nd7 {[%clk 0:09:00]} 18. Qd3 {[%clk 0:07:38]}  g6 {[%clk 0:08:57]} 19. e4 {[%clk 0:06:57]}  Rfb8 {[%clk 0:08:41]} 20. Bb3 {[%clk 0:06:31]}  Rb4 {[%clk 0:07:29]} 21. exd5 {[%clk 0:06:25]}  cxd5 {[%clk 0:07:31]} 22. Rfe1 {[%clk 0:04:37]}  Qg5 {[%clk 0:07:12]} 23. Nc5 {[%clk 0:04:26]}  Nxc5 {[%clk 0:05:52]} 24. Rxc5 {[%clk 0:04:28]}  a5 {[%clk 0:05:53]} 25. Bxd5 {[%clk 0:03:35]}  Rd8 {[%clk 0:05:42]} 26. Rxe6 {[%clk 0:02:53]}  fxe6 {[%clk 0:05:39]} 27. Bxe6+ {[%clk 0:02:55]}  Kf8 {[%clk 0:05:39]} 28. Bd5 {[%clk 0:02:23]}  Qe5 {[%clk 0:04:28]} 29. Rxa5 {[%clk 0:02:07]}  Rd4 {[%clk 0:04:13]} 30. Qf3+ {[%clk 0:01:49]}  Kg7 {[%clk 0:03:09]} 31. Ra7+ {[%clk 0:01:48]}  Kh6 {[%clk 0:03:03]} 32. Bb3 {[%clk 0:01:46]}  Rd3 {[%clk 0:02:26]} 33. Qg4 {[%clk 0:01:20]}  R8d4 {[%clk 0:02:25]} 34. f4 {[%clk 0:01:10]}  Rxf4 {[%clk 0:02:00]} 35. Qc8 {[%clk 0:00:55]}  Qe1+ {[%clk 0:01:42]} 36. Kh2 {[%clk 0:00:56]}  Qg3+ {[%clk 0:01:40]} 37. Kg1 {[%clk 0:00:55]}  Qf2+ {[%clk 0:01:38]} 38. Kh2 {[%clk 0:00:54]}  Qxa7 {[%clk 0:01:37]} 0-1


[Site "Internet"]

[Event "Chessable Masters - Torneo preliminare"]
[White "Hambleton, Aman"]
[Black "Guseinov, Gadir"]
[WhiteFideId "2606577"]
[BlackFideId "13401378"]
[WhiteElo "2447"]
[BlackElo "2632"]
[Result "1-0"]
[Round "3"]
[TimeControl "600+2"]
[Date "2023.03.13"]
[WhiteClock "0:00:11"]
[BlackClock "0:03:37"]

1. d4 {[%clk 0:10:01]}  Nf6 {[%clk 0:09:59]} 2. c4 {[%clk 0:10:01]}  g6 {[%clk 0:10:00]} 3. Nc3 {[%clk 0:10:02]}  Bg7 {[%clk 0:10:01]} 4. e4 {[%clk 0:10:04]}  d6 {[%clk 0:10:03]} 5. f3 {[%clk 0:10:04]}  O-O {[%clk 0:10:04]} 6. Be3 {[%clk 0:10:05]}  a6 {[%clk 0:10:05]} 7. Qd2 {[%clk 0:10:06]}  Nc6 {[%clk 0:10:06]} 8. Nge2 {[%clk 0:10:07]}  Bd7 {[%clk 0:10:07]} 9. Rc1 {[%clk 0:10:08]}  b5 {[%clk 0:10:07]} 10. Ng3 {[%clk 0:08:25]}  e5 {[%clk 0:10:03]} 11. d5 {[%clk 0:08:26]}  Nd4 {[%clk 0:10:05]} 12. Nce2 {[%clk 0:08:27]}  c5 {[%clk 0:09:21]} 13. dxc6 {[%clk 0:08:27]}  Nxc6 {[%clk 0:09:22]} 14. Nc3 {[%clk 0:08:17]}  b4 {[%clk 0:09:15]} 15. Nd5 {[%clk 0:08:16]}  Nxd5 {[%clk 0:09:14]} 16. cxd5 {[%clk 0:07:38]}  Nd4 {[%clk 0:09:15]} 17. Bd3 {[%clk 0:07:38]}  f5 {[%clk 0:09:09]} 18. O-O {[%clk 0:07:38]}  a5 {[%clk 0:08:43]} 19. Ne2 {[%clk 0:07:32]}  Qb6 {[%clk 0:07:56]} 20. Nxd4 {[%clk 0:07:09]}  exd4 {[%clk 0:07:56]} 21. Bf2 {[%clk 0:07:11]}  fxe4 {[%clk 0:07:41]} 22. Bxe4 {[%clk 0:07:06]}  Bf5 {[%clk 0:07:21]} 23. Rc6 {[%clk 0:06:29]}  Qa7 {[%clk 0:07:03]} 24. Rfc1 {[%clk 0:05:14]}  Qe7 {[%clk 0:06:11]} 25. Bxd4 {[%clk 0:03:05]}  Bxe4 {[%clk 0:06:02]} 26. Rc7 {[%clk 0:03:00]}  Bxd4+ {[%clk 0:06:00]} 27. Qxd4 {[%clk 0:03:02]}  Qf6 {[%clk 0:05:57]} 28. Qxf6 {[%clk 0:03:00]}  Rxf6 {[%clk 0:05:59]} 29. fxe4 {[%clk 0:03:02]}  Rf4 {[%clk 0:05:54]} 30. Re7 {[%clk 0:02:32]}  Raf8 {[%clk 0:05:54]} 31. h3 {[%clk 0:02:33]}  R8f7 {[%clk 0:05:44]} 32. Rc8+ {[%clk 0:01:55]}  Kg7 {[%clk 0:05:40]} 33. Rcc7 {[%clk 0:01:57]}  Rxe7 {[%clk 0:05:37]} 34. Rxe7+ {[%clk 0:01:59]}  Kf8 {[%clk 0:05:20]} 35. Re6 {[%clk 0:01:56]}  Kf7 {[%clk 0:05:16]} 36. b3 {[%clk 0:01:07]}  h5 {[%clk 0:04:35]} 37. g3 {[%clk 0:01:06]}  Rf3 {[%clk 0:04:36]} 38. Kg2 {[%clk 0:01:07]}  Rd3 {[%clk 0:04:32]} 39. Rxd6 {[%clk 0:01:07]}  Rd2+ {[%clk 0:04:33]} 40. Kf3 {[%clk 0:01:09]}  Rxa2 {[%clk 0:04:35]} 41. Kf4 {[%clk 0:00:47]}  g5+ {[%clk 0:03:55]} 42. Ke5 {[%clk 0:00:15]}  Rg2 {[%clk 0:03:50]} 43. Ra6 {[%clk 0:00:10]}  Rxg3 {[%clk 0:03:50]} 44. Ra7+ {[%clk 0:00:11]}  Kg6 {[%clk 0:03:50]} 45. d6 {[%clk 0:00:10]}  g4 {[%clk 0:03:46]} 46. hxg4 {[%clk 0:00:09]}  h4 {[%clk 0:03:38]} 47. d7 {[%clk 0:00:09]}  Rd3 {[%clk 0:03:38]} 48. Ra6+ {[%clk 0:00:09]}  Kf7 {[%clk 0:03:37]} 49. Rd6 {[%clk 0:00:11]} 1-0


[Site "Internet"]

[Event "Chessable Masters - Torneo preliminare"]
[White "Weetik, Vjacheslav"]
[Black "Cuenca Jimenez, Jose Fernando"]
[WhiteFideId "4153472"]
[BlackFideId "2255570"]
[WhiteElo "2445"]
[BlackElo "2455"]
[Result "1-0"]
[Round "3"]
[TimeControl "600+2"]
[Date "2023.03.13"]
[WhiteClock "0:01:37"]
[BlackClock "0:01:41"]

1. d4 {[%clk 0:09:50]}  Nf6 {[%clk 0:09:56]} 2. c4 {[%clk 0:09:50]}  e6 {[%clk 0:09:57]} 3. g3 {[%clk 0:09:45]}  d5 {[%clk 0:09:52]} 4. Nf3 {[%clk 0:09:43]}  Bb4+ {[%clk 0:09:53]} 5. Bd2 {[%clk 0:09:43]}  Be7 {[%clk 0:09:53]} 6. Bg2 {[%clk 0:09:45]}  c6 {[%clk 0:09:53]} 7. Qc2 {[%clk 0:09:37]}  b6 {[%clk 0:09:53]} 8. O-O {[%clk 0:09:37]}  Nbd7 {[%clk 0:09:54]} 9. Rd1 {[%clk 0:09:30]}  Bb7 {[%clk 0:09:54]} 10. Bf4 {[%clk 0:09:29]}  Rc8 {[%clk 0:09:54]} 11. Nc3 {[%clk 0:09:25]}  dxc4 {[%clk 0:09:53]} 12. e4 {[%clk 0:09:19]}  b5 {[%clk 0:09:39]} 13. h3 {[%clk 0:08:20]}  a6 {[%clk 0:09:34]} 14. g4 {[%clk 0:08:14]}  O-O {[%clk 0:09:29]} 15. g5 {[%clk 0:08:01]}  Nh5 {[%clk 0:09:27]} 16. Be3 {[%clk 0:08:00]}  Qc7 {[%clk 0:09:15]} 17. e5 {[%clk 0:06:47]}  c5 {[%clk 0:09:00]} 18. d5 {[%clk 0:06:44]}  Nxe5 {[%clk 0:05:57]} 19. Nxe5 {[%clk 0:06:29]}  Qxe5 {[%clk 0:05:59]} 20. d6 {[%clk 0:06:31]}  Bxd6 {[%clk 0:05:58]} 21. Bxb7 {[%clk 0:06:07]}  Qh2+ {[%clk 0:05:53]} 22. Kf1 {[%clk 0:06:08]}  Ng3+ {[%clk 0:05:29]} 23. Ke1 {[%clk 0:05:57]}  Rcd8 {[%clk 0:05:25]} 24. Kd2 {[%clk 0:04:28]}  Nf5 {[%clk 0:03:18]} 25. Kc1 {[%clk 0:04:02]}  Bf4 {[%clk 0:02:09]} 26. Be4 {[%clk 0:02:50]}  Bxe3+ {[%clk 0:01:45]} 27. fxe3 {[%clk 0:02:49]}  Qxh3 {[%clk 0:01:42]} 28. Bxf5 {[%clk 0:02:04]}  Qxe3+ {[%clk 0:01:42]} 29. Kb1 {[%clk 0:02:03]}  exf5 {[%clk 0:01:43]} 30. Qxf5 {[%clk 0:01:36]}  Rxd1+ {[%clk 0:01:43]} 31. Nxd1 {[%clk 0:01:37]}  Rd8 {[%clk 0:01:41]} 32. Nxe3 {[%clk 0:01:37]} 1-0


[Site "Internet"]

[Event "Chessable Masters - Torneo preliminare"]
[White "Agrest, Evgenij"]
[Black "Sattarov, Bobir"]
[WhiteFideId "1705024"]
[BlackFideId "14203081"]
[WhiteElo "2576"]
[BlackElo "2333"]
[Result "1-0"]
[Round "3"]
[TimeControl "600+2"]
[Date "2023.03.13"]
[WhiteClock "0:01:45"]
[BlackClock "0:00:02"]

1. Nf3 {[%clk 0:09:49]}  Nf6 {[%clk 0:10:00]} 2. b3 {[%clk 0:09:49]}  d5 {[%clk 0:09:54]} 3. Bb2 {[%clk 0:09:41]}  Bg4 {[%clk 0:09:54]} 4. e3 {[%clk 0:09:40]}  Nbd7 {[%clk 0:09:54]} 5. h3 {[%clk 0:09:40]}  Bh5 {[%clk 0:09:51]} 6. d3 {[%clk 0:09:39]}  e6 {[%clk 0:09:48]} 7. Nbd2 {[%clk 0:09:32]}  Bd6 {[%clk 0:09:43]} 8. c4 {[%clk 0:09:29]}  Qe7 {[%clk 0:09:40]} 9. Be2 {[%clk 0:09:14]}  h6 {[%clk 0:09:32]} 10. Qc2 {[%clk 0:08:54]}  c6 {[%clk 0:09:30]} 11. a3 {[%clk 0:08:46]}  O-O {[%clk 0:09:09]} 12. g4 {[%clk 0:08:07]}  Bg6 {[%clk 0:09:10]} 13. Rg1 {[%clk 0:08:08]}  e5 {[%clk 0:08:59]} 14. g5 {[%clk 0:08:00]}  hxg5 {[%clk 0:08:59]} 15. Nxg5 {[%clk 0:07:59]}  e4 {[%clk 0:08:42]} 16. d4 {[%clk 0:07:16]}  c5 {[%clk 0:06:37]} 17. cxd5 {[%clk 0:06:09]}  Rfc8 {[%clk 0:06:34]} 18. dxc5 {[%clk 0:05:25]}  Nxc5 {[%clk 0:06:34]} 19. Qb1 {[%clk 0:05:25]}  Nd3+ {[%clk 0:06:17]} 20. Bxd3 {[%clk 0:05:19]}  exd3 {[%clk 0:06:19]} 21. Bd4 {[%clk 0:04:22]}  Rc2 {[%clk 0:06:10]} 22. Qd1 {[%clk 0:03:56]}  Bh2 {[%clk 0:02:46]} 23. Rg2 {[%clk 0:03:35]}  Be5 {[%clk 0:02:47]} 24. Ngf3 {[%clk 0:03:15]}  Bxd4 {[%clk 0:01:57]} 25. Nxd4 {[%clk 0:03:13]}  Rac8 {[%clk 0:01:59]} 26. Kf1 {[%clk 0:02:31]}  Nxd5 {[%clk 0:01:39]} 27. Nc4 {[%clk 0:02:11]}  Nf6 {[%clk 0:00:07]} 28. a4 {[%clk 0:01:57]}  a6 {[%clk 0:00:04]} 29. a5 {[%clk 0:01:56]}  Rc3 {[%clk 0:00:02]} 30. Kg1 {[%clk 0:01:49]}  Qe6 {[%clk 0:00:02]} 31. Nxe6 {[%clk 0:01:45]} 1-0


[Site "Internet"]